Cogmind - Beta 13 @@@ ROGUE MODE // 2024.04.10 @ 15:28:20 Player: Demo Result: Destroyed by 4Q-AIL(R) with Subdweller Laser Performance ------------- Evolutions (0) 0 Regions Visited (3) 600 Robots Destroyed (35) 175 Value Destroyed (619) 619 Prototype IDs (0) 0 Alien Tech Used (0) 0 Bonus (-194) -194 TOTAL SCORE: 1200 Bonus ------- Friendly Fire -194 Cogmind --------- Core Integrity 0/250 Matter 287/300 Energy 170/170 System Corruption 0% Temperature Cool (43) Movement Treading (260) Ox1 Location -10/Subcaves Parts ------- > --- POWER (1) -------- Makeshift Power Source > --- PROPULSION (2) --- Spiked Treads Subdweller Monowheel > --- UTILITY (2) ------ Medium Storage Unit Signal Interpreter > --- WEAPON (2) ------- Subdweller Beam Cannon Light Assault Rifle > --- INVENTORY (10) --- Light Treads Wheel Wheel High-capacity Matter Pod (200) Seismic Detector Makeshift System Shield Subdweller Laser Battle Rifle Makeshift Axe Peak State ------------ > --- POWER ------------ Makeshift Power Source > --- PROPULSION ------- Spiked Treads Subdweller Monowheel > --- UTILITY ---------- Medium Storage Unit Signal Interpreter > --- WEAPON ----------- Subdweller Beam Cannon Light Assault Rifle > --- INVENTORY -------- Light Treads Wheel Wheel Subdweller Monowheel High-capacity Matter Pod Seismic Detector Seismic Detector Makeshift System Shield Subdweller Laser Makeshift Axe [Rating: 14] Favorites ----------- Power Makeshift Power Source Engine Makeshift Power Source Power Core Light Nuclear Core Propulsion Light Treads Treads Light Treads Wheel Subdweller Monowheel Utility Medium Storage Unit Device Seismic Detector Storage Medium Storage Unit Processor Signal Interpreter Weapon Subdweller Beam Cannon Energy Gun EM Pulse Gun Energy Cannon Subdweller Beam Cannon Ballistic Gun Subdweller Machine Gun Launcher Grenade Launcher Build | -11 -10 -10 -10 ------- Run | Yrd Mat Min Sub Slots Evolved . | . . . . Power . | . . . . Propulsion . | . . . . Utility . | . . . . Weapon . | . . . . Parts Attached 26 | 7 5 2 12 Power 4 | 1 1 . 2 Engine 3 | 1 1 . 1 Core 1 | . . . 1 Reactor . | . . . . Propulsion 7 | 2 . . 5 Treads 4 | 1 . . 3 Leg . | . . . . Wheel 3 | 1 . . 2 Hover . | . . . . Flight . | . . . . Utility 4 | 2 1 1 . Device 1 | 1 . . . Storage 2 | 1 1 . . Processor 1 | . . 1 . Hackware . | . . . . Protection . | . . . . Artifact . | . . . . Weapon 11 | 2 3 1 5 Energy Gun 5 | 2 2 . 1 Energy Cannon 2 | . . . 2 Ballistic Gun 2 | . . . 2 Ballistic Cannon . | . . . . Launcher 2 | . 1 1 . Special Weapon . | . . . . Impact Weapon . | . . . . Slashing Weapon . | . . . . Piercing Weapon . | . . . . Special Melee Weapon . | . . . . Unidentified Prototypes . | . . . . Parts Lost 10 | . 2 . 8 Power 2 | . 1 . 1 Propulsion 2 | . . . 2 Utility . | . . . . Weapon 6 | . 1 . 5 Highest Loss Streak 4 | . 1 . 4 To Critical Strikes . | . . . . Average Slot Usage (%) 96 | . 94 100 96 Engine 7 | . 8 14 6 Core 3 | . . . 5 Treads 14 | . 14 14 14 Wheel 14 | . 14 14 14 Device 3 | . 14 8 . Storage 14 | . 14 14 14 Processor 10 | . . 6 14 Energy Gun 8 | . 27 16 1 Energy Cannon 9 | . . . 12 Ballistic Gun 9 | . . . 12 Naked Turns . | . . . . Heaviest Build 27 | 13 20 21 27 Greatest Support 20 | 16 16 16 20 Greatest Overweight (x) 2 | 2 1 1 1 Average Overweight (x) . | . . 1 . Largest Inventory Capacity 10 | 8 10 10 10 Average Capacity 9 | 7 8 10 10 Most Carried 10 | 6 10 10 10 Average Carried 8 | 2 8 9 9 Final Capacity 10 | 8 10 10 10 Final Carried 9 | 6 9 9 9 Class Distribution -------------------- 59% | Scavenger-Mutant 40% | Mutant Dominant Class ---------------- Mutant | -10/Materials Mutant | -10/Mines Scavenger-Mutant | -10/Subcaves Resources | -11 -10 -10 -10 ----------- Run | Yrd Mat Min Sub Matter Collected 711 | 121 319 41 230 Remotely . | . . . . Salvage Created 1031 | 244 438 61 288 Parts 78 | 19 26 7 26 Haulers Intercepted 2 | . 2 . . Recyclers Shooed 1 | . 1 . . Parts Field Recycled . | . . . . Retrieved Matter . | . . . . Parts Self-Destructed 24 | . . . 24 Prevented . | . . . . Kills | -11 -10 -10 -10 ------- Run | Yrd Mat Min Sub Combat Hostiles Destroyed 21 | . 9 . 12 Melee 1 | . . . 1 Guns 10 | . 7 . 3 Cannons 8 | . . . 8 AOE 2 | . 2 . . Classes Destroyed 9 | 3 5 . 1 Worker 2 | 1 1 . . Builder 1 | . 1 . . Tunneler 6 | 5 . 1 . Hauler 2 | . 2 . . Recycler 1 | 1 . . . Watcher 1 | . 1 . . Swarmer 9 | . 3 . 6 Grunt 7 | . 6 1 . Subdweller 6 | . . . 6 Best Kill Streak 7 | 5 7 1 3 Combat Bots Only 4 | . 4 . 3 Max Kills in Single Turn 2 | 1 2 1 1 Gunslinging . | . . . . Exploded 2 | . 2 . . Melee 1 | . . . 1 Uniques/NPCs Destroyed . | . . . . Combat | -11 -10 -10 -10 -------- Run | Yrd Mat Min Sub Hostile Shots Fired 109 | . 19 3 87 Missed 30 | . 3 1 26 Damage Taken 1403 | . 263 68 1072 Core 256 | . 48 16 192 Absorbed by Shields . | . . . . Core Remaining (%) 100 | 100 . . . Volleys Fired 95 | 21 22 4 48 Largest 2 | 2 2 1 2 Hottest 110 | 90 90 30 110 Shots Fired 171 | 40 41 4 86 Gun 125 | 40 39 . 46 Cannon 39 | . . . 39 Launcher 7 | . 2 4 1 Special . | . . . . Kinetic 34 | . . . 34 Thermal 88 | 19 20 . 49 Explosive 7 | . 2 4 1 Electromagnetic 42 | 21 19 . 2 Robot Hit Streak 16 | 3 15 . 16 Robot Miss Streak 3 | 3 2 . 2 Penetration Max . | . . . . Secondary Targets . | . . . . Shots Hit Robots 90 | 15 28 . 47 Core Hits 45 | 8 17 3 17 Critical Kills . | . . . . Critical Parts Destroyed 1 | . . . 1 Critical Strikes 1 | . . . 1 Destroy 1 | . . . 1 Melee Attacks . | . . . . Impact . | . . . . Slashing . | . . . . Piercing . | . . . . Sneak Attacks . | . . . . Combat Hostiles . | . . . . Follow-up Attacks . | . . . . Damage Inflicted 1938 | 220 669 130 919 Guns 892 | 193 372 . 327 Cannons 555 | . . . 555 Explosions 486 | 27 297 130 32 Melee . | . . . . Ramming 5 | . . . 5 Kinetic 194 | . . . 194 Thermal 1039 | 102 259 . 678 Explosive 349 | . 187 130 32 Electromagnetic 351 | 118 223 . 10 Impact . | . . . . Slashing . | . . . . Piercing . | . . . . Highest Corruption . | . . . . Average Corruption . | . . . . Corruption Purged . | . . . . Corruption Blocked . | . . . . Overload Shots . | . . . . Overflow Damage 17 | . 17 . . Projectiles . | . . . . Explosions 17 | . 17 . . Melee . | . . . . Knockbacks . | . . . . Impact . | . . . . Kinetic . | . . . . Secondary . | . . . . Self-Inflicted Damage 129 | . 91 38 . Shots 4 | . 3 1 . Rammed 3 | . . . 3 Targets Rammed 3 | . . . 3 Kicked . | . . . . Crushed . | . . . . Highest Temperature 289 | 270 157 . 289 Average Temperature 76 | 124 46 . 57 Received Heat Transfer 807 | . 90 . 717 Siege Activations . | . . . . Robots Corrupted . | . . . . Combat Hostiles . | . . . . Parts Fried . | . . . . Impact Corruptions . | . . . . Robots Melted . | . . . . Combat Hostiles . | . . . . Parts Melted 4 | . 1 . 3 Heat Transferred 1939 | 222 607 . 1110 Parts Sabotaged . | . . . . Parts Stolen . | . . . . Parts Stripped . | . . . . Power Chain Reactions 3 | 1 2 . . Alert | -11 -10 -10 -10 ------- Run | Yrd Mat Min Sub Peak Influence 318 | 35 318 68 . Initial 51 | . 22 51 . Average 94 | 18 125 63 . Maximum Alert Level 1 | . 1 . . Low Security (%) 88 | 100 83 100 . Level 1 11 | . 16 . . Level 2 . | . . . . Level 3 . | . . . . Level 4 . | . . . . Level 5 . | . . . . High Security . | . . . . Max Security . | . . . . Squads Dispatched 2 | . 2 . . Investigation 2 | . 2 . . Extermination . | . . . . Reinforcement . | . . . . Assault . | . . . . Garrison . | . . . . Intercept . | . . . . Searches Triggered . | . . . . Construction Impeded . | . . . . Haulers Reinforced . | . . . . Active Scanning Responses . | . . . . Cargo Convoy Interrupts . | . . . . Stealth | -11 -10 -10 -10 --------- Run | Yrd Mat Min Sub Distress Signals 1 | . 1 . . Communications Jammed . | . . . . Distress Signals . | . . . . Times Spotted 36 | . 12 3 21 Peak Tracking Total 3 | . 3 3 3 Tactical Retreats 3 | . . . 3 Traps | -11 -10 -10 -10 ------- Run | Yrd Mat Min Sub Traps Triggered 2 | . 2 . . Indirectly . | . . . . Trap Hack Attempts . | . . . . Triggered . | . . . . Disarmed . | . . . . Reprogrammed . | . . . . Reused . | . . . . Traps Extracted . | . . . . Installed . | . . . . Triggered . | . . . . Machines | -11 -10 -10 -10 ---------- Run | Yrd Mat Min Sub Machines Disabled 1 | . 1 . . Max in Single Turn 1 | . 1 . . Machines Repaired . | . . . . Machines Dismantled . | . . . . Machines Sabotaged . | . . . . Overloaded Fab Kills . | . . . . Hacking | -11 -10 -10 -10 --------- Run | Yrd Mat Min Sub Machines Accessed 2 | . 1 . 1 Terminals 1 | . 1 . . Fabricators . | . . . . Repair Stations . | . . . . Recycling Units . | . . . . Scanalyzers . | . . . . Garrison Access . | . . . . Total Hacks 10 | . 6 . 4 Successful 7 | . 3 . 4 Failed 3 | . 3 . . Catastrophic 1 | . 1 . . Database Lockouts . | . . . . Manual 7 | . 7 . . Terminals 6 | . 6 . . Fabricators . | . . . . Repair Stations . | . . . . Recycling Units . | . . . . Scanalyzers . | . . . . Garrison Access . | . . . . Terminal Hacks 7 | . 3 . 4 Record 4 | . . . 4 Part Schematic 1 | . 1 . . Robot Analysis 2 | . 2 . . Fabricator Hacks . | . . . . Repair Station Hacks . | . . . . Recycling Unit Hacks . | . . . . Scanalyzer . | . . . . Garrison Access Hacks . | . . . . Unauthorized Hacks . | . . . . Terminals . | . . . . Fabricators . | . . . . Repair Stations . | . . . . Recycling Units . | . . . . Scanalyzers . | . . . . Garrison Access . | . . . . Data Cores Recovered . | . . . . Used . | . . . . Hacking Detections 1 | . 1 . . Full Trace Events . | . . . . Feedback Events . | . . . . Feedback Blocked . | . . . . Robot Schematics Acquired . | . . . . Robots Built . | . . . . Authchips . | . . . . Time . | . . . . Total Robot Build Rating . | . . . . Part Schematics Acquired 1 | . 1 . . Parts Built . | . . . . Authchips . | . . . . Time . | . . . . Total Part Build Rating . | . . . . Parts Repaired . | . . . . Time . | . . . . Parts Recycled . | . . . . Recycled Matter . | . . . . Retrieved Matter . | . . . . Retrieved Components . | . . . . Parts Scanalyzed . | . . . . Part Schematics Acquired . | . . . . Parts Damaged . | . . . . Bothacking | -11 -10 -10 -10 ------------ Run | Yrd Mat Min Sub Used RIF Installer . | . . . . Robots Hacked . | . . . . Non-combat . | . . . . Combat . | . . . . Robot Hacks Applied . | . . . . Relay Couplers Released . | . . . . Fabnet Peak Effective % . | . . . . Robots Rewired . | . . . . Allies Hacked . | . . . . Hacks Repelled . | . . . . Allies | -11 -10 -10 -10 -------- Run | Yrd Mat Min Sub Total Allies 3 | . . 3 . Largest Group 3 | . . 3 1 Highest-Rated Group 40 | . . 40 8 Highest-Rated Ally 16 | . . 16 8 Total Orders . | . . . . Ally Attacks 6 | . . 4 2 Total Damage 46 | . . 23 23 Kills . | . . . . Allies Corrupted . | . . . . Allies Melted . | . . . . Intel | -11 -10 -10 -10 ------- Run | Yrd Mat Min Sub Robot Analysis Total 2 | . 2 . . Derelict Logs Recovered 2 | . . . 2 Drone Launches . | . . . . Drone Recoveries . | . . . . Exploration | -11 -10 -10 -10 ------------- Run | Yrd Mat Min Sub Turns Passed 1903 | 153 447 74 1229 Spaces Moved 1302 | 75 341 51 835 Core 9 | 9 . . . Treads 7 | . . . 7 Legs . | . . . . Wheels 1286 | 66 341 51 828 Hover . | . . . . Flight . | . . . . Fastest Speed 50 | 50 100 115 115 Average Speed 114 | 100 102 115 120 Slowest Speed 240 | 150 115 115 240 Overloaded Moves . | . . . . Propulsion Burnouts . | . . . . Robots Hopped . | . . . . Cave-ins Triggered . | . . . . Exploration Rate (%) 31 | 4 61 13 47 Regions Visited 3 Branch Regions 2 Pre-discovered Areas 2 | . . . 2 Known Exits Taken 1 | . . 1 . Unknown Exits Taken 2 | 1 1 . . Scrap Searched 4 | . . . 4 Spaces Dug . | . . . . Terrain Destroyed 57 | 5 23 22 7 Melee . | . . . . Projectile 1 | . . . 1 AOE 56 | 5 23 22 6 Terrain Rammed . | . . . . Walls Destroyed . | . . . . Machines Disabled . | . . . . Actions | -11 -10 -10 -10 --------- Run | Yrd Mat Min Sub Total 1547 | 108 399 62 978 Wait 86 | . 21 5 60 Move 1299 | 74 340 50 835 Hop . | . . . . Pick Up 24 | 6 7 . 11 Fast Attach 11 | 7 1 . 3 Attach 7 | . 1 1 5 Detach 1 | . . 1 . Swap 8 | . 3 1 4 Drop 13 | . 4 . 9 Fire 95 | 21 22 4 48 Melee . | . . . . Ram . | . . . . Kick . | . . . . Crush 3 | . . . 3 Escape Stasis . | . . . . Rewire . | . . . . Trap . | . . . . Miscellaneous . | . . . . Route ------- -11/Scrapyard -10/Materials (discovered 3 exits: [*Mat x2] / [*Min]) -10/Mines -10/Subcaves (discovered 2 exits: *Mat / [*Rec]) History --------- Turn | Location | Event 20 | -11/Scrapyard | Discovered new exit (range 16) 154 | -11/Scrapyard | Entered Materials 275 | -10/Materials | Discovered new exit (range 6) 307 | -10/Materials | Build established: Mutant 474 | -10/Materials | Discovered new exit (range 5) 584 | -10/Materials | Discovered new exit (range 16) 601 | -10/Materials | Entered Mines 606 | -10/Mines | Assisted by bots powering up and referring to "LRC-V3" 612 | -10/Mines | Assembled infested the area 628 | -10/Mines | Discovered new exit (range 7) 643 | -10/Mines | Identified exit to Subcaves 675 | -10/Mines | Entered Subcaves 675 | -10/Subcaves | Accompanied by 2 allies 738 | -10/Subcaves | Lost 4 parts (1n3w) 765 | -10/Subcaves | Core integrity fell below 50% 795 | -10/Subcaves | Lost 3 parts (1p1n1w) 823 | -10/Subcaves | Visited Clippyterm 827 | -10/Subcaves | Learned location of Extension (-5) 827 | -10/Subcaves | Learned Factory fabricator intel 1073 | -10/Subcaves | Build established: Scavenger-Mutant 1369 | -10/Subcaves | Core integrity fell below 20% 1375 | -10/Subcaves | Learned Materials trap positions 1551 | -10/Subcaves | Discovered new exit (range 11) 1555 | -10/Subcaves | Shifting Twisted Machinery released Battle Rifle 1580 | -10/Subcaves | Identified exit to Materials 1618 | -10/Subcaves | Learned location of Storage (-9) 1773 | -10/Subcaves | Discovered new exit (range 12) 1904 | -10/Subcaves | Destroyed by 4Q-AIL(R) with Subdweller Laser Last Messages --------------- 01636_ Dropped Sub. Machine Gun. 01636_ Acquired Battle Rifle. 01672_ S-10 Pest suffers critical hit (Destroy). 01672_ Destroyed Lgt. Assault Rifle. 01675_ S-10 Pest destroyed. 01682_ Lgt. Assault Rifle fries itself beyond repair. 01687_ Flight Unit fries itself beyond repair. 01689_ Acquired 11 matter. 01690_ Lgt. Ion Engine fries itself beyond repair. 01691_ Flight Unit fries itself beyond repair. 01693_ S-10 Pest destroyed. 01696_ Acquired 4 matter. 01757_ Sub. Monowheel shoots sparks and powers down. 01759_ Dropped Broken Sub. Monowheel. 01773_ EXIT=FOUND 01899_ C0-M71(R) destroyed. Map ----- +----------------------------------------------------+ | | | | | ?????????????????????????????????????????????????? | | ?????????????????????????????????????????????????? | | ?????????????????????????????????????????????????? | | ?????????????????????????????????????????????????? | | ?????????????????????????????????????????????????? | | ?????????????????????????????????????????????????? | | ?????????????????????????????????????????????????? | | ?????????????????????????????????????????????????? | | ?????????????????????????????????????????????????? | | ?????????????????????????????????????????????????? | | ?????????????????????????????????????????????????? | | ?????????????????????????????????????????????????? | | ?????????????????????????????????????????????????? | | ?????????????????????????????????????????????????? | | ?????????????????##??????????????????????????????? | | ????????????????## #?????????##??????????????????? | | ????????????????# #??###### ##?????????????????? | | ????????????????# ### #?????????????????? | | ??????????????### #??????????????????? | | ??????????????#" #??????????????????? | | ?????????????##" #??????????????????? | | ?????????????#"" ## *# "???????????? | | ?????????????##" #???##R%##??? ??????????? | | ???????????####""##???# [@#???????####???????????? | | ??????????## """ ##??# ###??????????????????????? | | ?????????## """ #### #????????????????????????? | | ?????????# "" ## ####?????????????????????? | | ???????### ## "## #?????????????????????? | | ??????## ######" #?????????????????????? | | ??????# #???## #?????????????????????? | | ?????# " "#????## ##?????????????????????? | | ?????## ##"""" #??### ##??????????????????????? | | ??????##?# ""###### ###???????????????????????? | | ?????????# #??# #?????????????????????????? | | ?????????## ##?## #?????????????????????????? | | ??????????###??# #?????????????????????????? | | ??????????????## #?????????????????????????? | | ????????????### #?????????????????????????? | | ????????????# ##?????????????????????????? | | ????????????# ##??????????????????????????? | | ????????????## #???????????????????????????# | | ?????????????##### #?????????????????????????##< | | ????????????????## #?????????????????????????"" | | ??????????###??## ##????????????????????????? " | | ??????????# ### #?????????????????????????? | | ??????????# #?????????????????????????? | | ??????????## #?#####??############?????? | | ???????????# ### #### ####??? | +----------------------------------------------------+ Best States ------------- Heat Dissipation 25 Energy Generation 15 Energy Capacity 250 Matter Stores 300 Matter Capacity 300 Sight Range 16 Terrain Scan Density 10 Evasion (%) 40 Recoil Reduction 1 Item Schematics ----------------- Utility Shielding | -10/Materials | Hacked Robot Schematics ------------------ None Fabricated ------------ Nothing Alien Tech Used ----------------- None Achievements -------------- None Challenges ------------ None Game ------ Seed ServoHeavyInverter Manual? 0 Play Time 00:22:07 Cumulative 71.7 hours Start 2024.04.10 @ 15:06:08 End 2024.04.10 @ 15:28:20 Sessions 1 Manual Loads 0 Difficulty Rogue Special Mode None Game No. 86 Rogue 86 Adventurer 0 Explorer 0 Win Type - Total 1 Types 1/0/0/0/0/0/0/0/0 Lore% 43 Gallery% 62 Achievement% 48 Wizard Run 0 Options --------- Layout 1 ASCII 0 Keyboard 0 Movement Numpad Keybinds 0 Fullscreen 1 Font 24/Smallcaps Map View 50x35 Zoom Use 0% Tactical HUD 1 Map Filters NONE Filters NONE Steam 1 RUN: 21e634e1-fb36-47a9-afed-dc523e7d2127